bitfinex/quotes_BTCUSD_20250623
["timestamp","ask_amount","ask_price","bid_price","bid_amount"]
[1750707973992,0.77179935,102880.0,102870.0,0.39338286]
[1750707975105,0.77179935,102880.0,102870.0,0.37394114]
[1750707975308,0.43179935,102880.0,102870.0,0.39338286]
[1750707975535,0.43179935,102880.0,102870.0,0.37394114]
[1750707975743,0.43179935,102880.0,102870.0,0.38366205]
[1750707975928,0.43179935,102880.0,102870.0,0.39338286]
[1750707976339,0.43179935,102880.0,102870.0,0.1698]
[1750707976542,0.43179935,102880.0,102870.0,0.37394114]
[1750707976798,0.43179935,102880.0,102870.0,0.38366195]
[1750707977414,0.43179935,102880.0,102870.0,0.1698]
[1750707977626,0.43179935,102880.0,102870.0,0.37394114]
[1750707977834,0.43179935,102880.0,102870.0,0.1698]
[1750707978054,0.8815987,102880.0,102870.0,0.16964]
[1750707978273,0.9064987,102880.0,102870.0,0.16964]
[1750707980302,1.2223987,102880.0,102860.0,0.17076]
[1750707980522,1.2413987,102870.0,102860.0,0.0012]
[1750707981188,1.25593955,102870.0,102860.0,0.0012]
[1750707981408,1.35623894,102870.0,102860.0,0.0012]
[1750707981858,1.35723894,102870.0,102860.0,0.00166017]
[1750707984020,1.25693955,102870.0,102860.0,0.00166017]
[1750707984265,1.25693955,102870.0,102860.0,0.00066017]
[1750707984266,1.1923987,102870.0,102860.0,0.00066017]
[1750707986894,1.1923987,102870.0,102860.0,0.02556017]
[1750707987166,1.1923987,102870.0,102860.0,0.00066017]
[1750707989398,0.001,102870.0,102860.0,0.00066017]
[1750707989610,1.1923987,102870.0,102860.0,0.00066017]
[1750707990062,1.2173987,102870.0,102860.0,0.00066017]
[1750707990283,1.2414987,102870.0,102860.0,0.00066017]
[1750707993798,0.3901,102870.0,102860.0,0.00066017]
[1750707994012,0.3901,102870.0,102860.0,0.02676017]
[1750707994013,1.1923987,102870.0,102860.0,0.02676017]
[1750707994233,0.341,102870.0,102860.0,0.24599921]
[1750707994456,0.42669935,102870.0,102860.0,0.54470312]
[1750707994680,0.42669935,102870.0,102860.0,0.5155386]
[1750707994885,0.42669935,102870.0,102860.0,0.53498221]
[1750707995313,0.42669935,102870.0,102860.0,0.54470378]
[1750707995728,0.42669935,102870.0,102860.0,0.55442525]
[1750707996161,0.42669935,102870.0,102860.0,0.56414663]
[1750707996824,0.42669935,102870.0,102860.0,0.55442478]
[1750707997295,0.42669935,102870.0,102860.0,0.56414607]
[1750707997538,0.42669935,102870.0,102860.0,0.5447034]
[1750707997785,0.42669935,102870.0,102860.0,0.32109956]
[1750707998000,0.8523987,102870.0,102860.0,0.22072017]
[1750707998210,0.001,102870.0,102860.0,0.16982017]
[1750707998425,0.8523987,102870.0,102860.0,0.16982017]
[1750707999101,1.1923987,102870.0,102860.0,0.00066017]
[1750708003218,1.2417987,102870.0,102860.0,0.00066017]
[1750708003640,1.2173987,102870.0,102860.0,0.00066017]
[1750708003852,1.1923987,102870.0,102860.0,0.00066017]
[1750708005920,0.341,102870.0,102860.0,0.25522097]
[1750708006088,0.341,102870.0,102860.0,0.27466429]
[1750708006089,0.76669935,102870.0,102860.0,0.27466429]
[1750708006702,0.76669935,102870.0,102860.0,0.26494292]
[1750708007170,0.76669935,102870.0,102860.0,0.27466458]
[1750708007400,0.76669935,102870.0,102860.0,0.29410677]
[1750708007609,0.76669935,102870.0,102860.0,0.28438548]
[1750708007837,0.76669935,102870.0,102860.0,0.2746641]
[1750708008022,0.76669935,102870.0,102860.0,0.28438548]
[1750708008230,0.76669935,102870.0,102860.0,0.26494263]
[1750708008675,0.76669935,102870.0,102860.0,0.2746642]
[1750708008848,0.76669935,102870.0,102860.0,0.26494263]
[1750708009266,0.76669935,102870.0,102860.0,0.2746642]
[1750708009605,0.76669935,102870.0,102860.0,0.28438567]
[1750708009968,0.76669935,102870.0,102860.0,0.2746642]
[1750708010162,0.76669935,102870.0,102860.0,0.25522097]
[1750708010380,0.76669935,102870.0,102860.0,0.26494263]
[1750708010953,0.76669935,102870.0,102860.0,0.2746642]
[1750708011193,0.10361726,102870.0,102860.0,0.25522097]
[1750708011424,0.42569935,102870.0,102860.0,0.26494263]
[1750708012597,0.0001,102880.0,102870.0,0.0517]
[1750708012813,0.42579935,102880.0,102870.0,0.22054]
[1750708013008,0.42579935,102880.0,102870.0,0.43440167]
[1750708013251,0.76579935,102880.0,102870.0,0.41496014]
[1750708013455,0.76579935,102880.0,102870.0,0.43440186]
[1750708013655,0.76579935,102880.0,102870.0,0.44412286]
[1750708013863,0.76779935,102880.0,102870.0,0.45384358]
[1750708014063,0.76779935,102880.0,102870.0,0.44412286]
[1750708014219,0.76779935,102880.0,102870.0,0.45384358]
[1750708014415,0.77079935,102880.0,102870.0,0.44412286]
[1750708014617,0.77079935,102880.0,102870.0,0.56386321]
[1750708014864,0.43079935,102880.0,102870.0,0.56386321]
[1750708015851,0.42779935,102880.0,102870.0,0.56386321]
[1750708016049,0.0001,102880.0,102870.0,0.56386321]
[1750708016598,0.42579935,102880.0,102870.0,0.56386321]
[1750708017262,0.42679935,102880.0,102870.0,0.56386321]
[1750708017634,0.0011,102880.0,102870.0,0.56386321]
[1750708018945,0.42679935,102880.0,102870.0,0.56386321]
[1750708020611,0.0011,102880.0,102870.0,0.56386321]
[1750708020841,0.42679935,102880.0,102870.0,0.56386321]
[1750708022793,0.0011,102880.0,102870.0,0.56386321]
[1750708023018,0.42679935,102880.0,102870.0,0.56386321]
[1750708023424,0.0011,102880.0,102870.0,0.56386321]
[1750708023631,0.42679935,102880.0,102870.0,0.56386321]
[1750708025630,0.42679935,102880.0,102870.0,0.39502321]
[1750708025842,0.42679935,102880.0,102870.0,0.59276521]
[1750708026053,0.42679935,102880.0,102870.0,0.56354321]
[1750708026486,0.42679935,102880.0,102870.0,0.48268106]
[1750708026700,0.42679935,102880.0,102870.0,0.3744814]
[1750708026915,0.0011,102880.0,102870.0,0.5430014]
[1750708027128,0.42679935,102880.0,102870.0,0.5430014]
[1750708028410,0.81649935,102880.0,102860.0,0.02988217]
[1750708028612,0.8513987,102870.0,102860.0,0.16910017]
[1750708029095,0.8513987,102870.0,102860.0,0.36353921]
[1750708029399,0.3908,102880.0,102870.0,0.27648182]
[1750708029400,0.76679935,102880.0,102870.0,0.27648182]
[1750708029624,0.76579935,102880.0,102870.0,0.37678121]
[1750708031438,0.76579935,102880.0,102870.0,0.37430121]
[1750708031655,0.76679935,102880.0,102870.0,0.37430121]
[1750708034132,0.0011,102880.0,102870.0,0.37430121]
[1750708034345,0.42679935,102880.0,102870.0,0.37430121]
[1750708039443,0.76679935,102880.0,102870.0,0.37430121]
[1750708039656,0.76679935,102880.0,102870.0,0.40352421]
[1750708040082,0.3411,102880.0,102870.0,0.40352421]
[1750708040509,0.76679935,102880.0,102870.0,0.40352421]
[1750708041170,0.3411,102880.0,102870.0,0.40352421]
[1750708041375,0.76679935,102880.0,102870.0,0.40352421]
[1750708043973,0.3411,102880.0,102870.0,0.40352421]
[1750708044382,0.3411,102880.0,102870.0,0.82922356]
[1750708044621,0.0011,102880.0,102870.0,0.82922356]
[1750708044833,0.0011,102880.0,102870.0,1.12542356]
[1750708045458,0.0001,102880.0,102870.0,1.12642356]
[1750708045898,0.0001,102880.0,102870.0,1.12742356]
[1750708046962,0.0001,102880.0,102870.0,1.14196441]
[1750708047203,0.0001,102880.0,102870.0,1.56766376]
[1750708047639,0.0001,102880.0,102870.0,1.61766376]
[1750708047859,0.0001,102900.0,102890.0,0.71327875]
[1750708048074,0.0001,102900.0,102890.0,1.02829814]
[1750708048294,0.0001,102900.0,102890.0,2.14019749]
[1750708048532,0.0001,102920.0,102910.0,0.71323531]
[1750708048753,0.0001,102920.0,102910.0,1.2777347]
[1750708048968,0.0001,102920.0,102910.0,1.3277347]
[1750708049183,0.0001,102920.0,102910.0,1.2777347]
[1750708049391,0.0001,102920.0,102910.0,1.3277347]
[1750708049905,0.00023823,102920.0,102910.0,1.3277347]
[1750708049996,0.00023823,102920.0,102910.0,0.90703535]
[1750708050206,0.00023823,102920.0,102910.0,0.6744945]
[1750708050418,0.00023823,102920.0,102910.0,1.31483385]
[1750708051050,0.00023823,102920.0,102910.0,1.31883385]
[1750708051474,0.00023823,102920.0,102910.0,1.3333747]
[1750708052891,0.0001,102930.0,102920.0,0.23801424]
[1750708053092,0.0001,102930.0,102920.0,0.81291298]
[1750708053299,0.0001,102930.0,102920.0,1.10911298]
[1750708053936,0.0001,102930.0,102920.0,1.13831198]
[1750708054184,0.0001,102930.0,102920.0,1.35287198]
[1750708054426,0.0001,102930.0,102920.0,1.45846147]
[1750708054634,0.0001,102930.0,102920.0,1.46146147]
[1750708055232,0.0001,102930.0,102920.0,1.46446147]
[1750708055662,0.0001,102930.0,102920.0,0.93317263]
[1750708055866,0.0001,102930.0,102920.0,1.51446147]
[1750708056290,0.0001,102930.0,102920.0,3.16429031]
[1750708056504,0.0042,102950.0,102940.0,0.85541881]
[1750708056707,0.0042,102950.0,102940.0,1.4196782]
[1750708057993,0.0042,102950.0,102940.0,1.4246782]
[1750708058208,0.0042,102950.0,102940.0,1.44437088]
[1750708058857,0.0042,102950.0,102940.0,1.45037088]
[1750708059071,0.0042,102950.0,102940.0,1.45457088]
[1750708059478,0.0042,102950.0,102940.0,1.40457088]
[1750708059764,0.0042,102950.0,102940.0,1.45457088]
[1750708060796,0.0042,102950.0,102940.0,1.40457088]
[1750708061006,0.0042,102950.0,102940.0,1.45457088]
[1750708061637,0.0042,102950.0,102940.0,1.49837088]
[1750708061846,0.0042,102950.0,102940.0,1.54837088]
[1750708062501,0.0042,102950.0,102940.0,1.01708204]
[1750708062718,0.0002,102970.0,102960.0,0.04367723]
[1750708062937,0.00033821,102970.0,102960.0,1.13493565]
[1750708063349,0.00033821,102970.0,102960.0,1.18493565]
[1750708063811,0.00033821,102970.0,102960.0,1.48113565]
[1750708064017,0.00033821,102970.0,102960.0,1.48313565]
[1750708064423,0.00133821,102970.0,102960.0,1.48113565]
[1750708064648,0.00033821,102970.0,102960.0,1.48113565]
[1750708064837,0.00033821,102970.0,102960.0,2.40742449]
[1750708064995,0.00033821,102970.0,102960.0,2.4336185]
[1750708065213,0.00033821,102970.0,102960.0,2.41042449]
[1750708067214,0.00033821,102970.0,102960.0,1.87865565]
[1750708067638,0.00033821,102970.0,102960.0,1.82861565]
[1750708067848,0.00033821,102970.0,102960.0,1.77861565]
[1750708068055,0.00033821,102970.0,102960.0,1.22481565]
[1750708068256,0.00033821,102970.0,102960.0,0.59658596]
[1750708068779,0.00033821,102970.0,102960.0,0.61112681]
[1750708069013,0.00033821,102970.0,102960.0,0.59658596]
[1750708069220,0.00033821,102970.0,102960.0,0.32668596]
[1750708069394,0.00033821,102970.0,102960.0,0.54044596]
[1750708069612,0.00033821,102970.0,102960.0,0.54244596]
[1750708070673,0.00033821,102970.0,102960.0,0.53944596]
[1750708071038,0.00033821,102970.0,102960.0,0.54044596]
[1750708071832,0.00033821,102970.0,102960.0,0.56474596]
[1750708073093,0.00033821,102970.0,102960.0,0.58984596]
[1750708073295,0.00033821,102970.0,102960.0,1.1211348]
[1750708074287,0.00033821,102970.0,102960.0,1.4173348]
[1750708074486,0.00033821,102970.0,102960.0,0.88604596]
[1750708075011,0.00033821,102970.0,102960.0,0.89014596]
[1750708078254,0.00936092,102970.0,102960.0,0.89014596]
[1750708078451,0.00936093,102970.0,102960.0,0.89014596]
[1750708078834,0.00033821,102970.0,102960.0,0.89014596]
[1750708079743,0.00936613,102970.0,102960.0,0.89014596]
[1750708080110,0.00033821,102970.0,102960.0,0.89014596]
[1750708080336,0.00936395,102970.0,102960.0,0.89014596]
[1750708080541,0.0093704,102970.0,102960.0,1.4214348]
[1750708080962,0.00937056,102970.0,102960.0,1.4214348]
[1750708081335,0.00937056,102970.0,102960.0,0.67638596]
[1750708081550,0.00937056,102970.0,102960.0,0.88998596]
[1750708082090,0.00937056,102970.0,102960.0,1.4212748]
[1750708082282,0.00938213,102970.0,102960.0,1.4212748]
[1750708083335,0.00938213,102970.0,102960.0,1.43581565]
[1750708083751,0.00033821,102970.0,102960.0,1.43581565]
[1750708084388,0.00033821,102970.0,102960.0,1.75373087]
[1750708088135,0.00033821,102970.0,102960.0,1.80373087]
[1750708088348,0.00033821,102970.0,102960.0,2.19373087]
[1750708089200,0.00033821,102970.0,102960.0,2.19173087]
[1750708089629,0.00033821,102970.0,102960.0,2.19473087]
[1750708089835,0.00033821,102970.0,102960.0,2.19373087]
[1750708090047,0.00033821,102970.0,102960.0,2.19673087]
[1750708090285,0.00033821,102970.0,102960.0,2.14373087]
[1750708090499,0.00033821,102970.0,102960.0,2.19873087]
[1750708090907,0.00033821,102970.0,102960.0,2.19573087]
[1750708091124,0.00033821,102970.0,102960.0,2.09553087]
[1750708091346,0.00033821,102970.0,102960.0,2.19953087]
[1750708091577,0.00033821,102970.0,102960.0,1.67492884]
[1750708091786,0.00033821,102970.0,102960.0,2.14953087]
[1750708093906,0.00033821,102970.0,102960.0,2.19953087]
[1750708096090,0.00033821,102970.0,102960.0,2.14953087]
[1750708096313,0.00033821,102970.0,102960.0,2.19953087]
[1750708097906,0.0001,102980.0,102970.0,0.53376751]
[1750708098114,0.0001,102980.0,102970.0,1.27432893]
[1750708099074,0.0001,102980.0,102970.0,1.27732893]
[1750708099862,0.0001,102980.0,102970.0,1.27484893]
[1750708100064,0.0001,102980.0,102970.0,0.8522469]
[1750708100275,0.0001,102980.0,102970.0,1.27684893]
[1750708102157,0.0001,102980.0,102970.0,2.58655096]
[1750708102377,0.0001,102980.0,102970.0,2.63655096]
[1750708103292,0.0001,102980.0,102970.0,2.46959096]
[1750708103500,0.0001,103010.0,103000.0,1.00470449]
[1750708103687,0.00056051,103010.0,103000.0,1.31788388]
[1750708104927,0.00056051,103010.0,103000.0,1.32198388]
[1750708105129,0.00056051,103010.0,103000.0,1.27124388]
[1750708105325,0.00056051,103010.0,103000.0,1.27524388]
[1750708105532,0.00056051,103010.0,103000.0,1.30014388]
[1750708105742,0.00056051,103010.0,103000.0,1.27524388]
[1750708105951,0.00056051,103010.0,103000.0,0.85064185]
[1750708106127,0.00056051,103010.0,103000.0,1.32434388]
[1750708106760,0.00056051,103010.0,103000.0,1.34223143]
[1750708107240,0.00056051,103010.0,103000.0,1.27524388]
[1750708107646,0.00056051,103010.0,103000.0,1.27520388]
[1750708107858,0.00056051,103010.0,103000.0,0.623261]
[1750708108080,0.47496254,103010.0,103000.0,0.623261]
[1750708108310,0.26797307,103010.0,103000.0,0.669261]
[1750708108520,0.26797307,103010.0,103000.0,0.836021]
[1750708108721,0.26797307,103010.0,103000.0,0.33169921]
[1750708108945,0.26797307,103010.0,103000.0,0.54445921]
[1750708109153,0.0002,103020.0,103010.0,0.22327814]
[1750708109383,0.3403381,103020.0,103010.0,0.49033753]
[1750708109568,0.76494013,103020.0,103010.0,0.49033753]
[1750708111368,0.81284013,103020.0,103010.0,0.49033753]
[1750708111876,0.81284013,103020.0,103010.0,0.32357753]
[1750708112091,0.81284013,103020.0,103010.0,0.51952053]
[1750708113507,0.81284013,103020.0,103010.0,0.49033753]
[1750708113710,0.3882381,103020.0,103010.0,0.51952053]
[1750708113921,0.81284013,103020.0,103010.0,0.51952053]
[1750708115437,0.81284013,103020.0,103010.0,0.49033753]
[1750708115684,0.81284013,103020.0,103010.0,0.51952053]
[1750708117440,0.81284013,103020.0,103010.0,0.49033753]
[1750708117646,0.81284013,103020.0,103010.0,0.51952053]
[1750708118509,0.81284013,103020.0,103010.0,0.49033753]
[1750708118713,0.3882381,103020.0,103010.0,0.51952053]
[1750708118859,0.81284013,103020.0,103010.0,0.51952053]
[1750708119919,0.3403381,103020.0,103010.0,0.51952053]
[1750708120292,0.0003381,103020.0,103010.0,0.56932053]
[1750708122296,0.0003381,103020.0,103010.0,0.51952053]
[1750708122498,0.47284013,103020.0,103010.0,0.4806304]
[1750708122702,0.47284013,103020.0,103010.0,0.51951653]
[1750708123031,0.3882381,103020.0,103010.0,0.49033753]
[1750708123440,0.81284013,103020.0,103010.0,0.49033753]
[1750708126147,0.3882381,103020.0,103010.0,0.49033753]
[1750708126347,0.81284013,103020.0,103010.0,0.49033753]
[1750708126560,0.42460203,103020.0,103010.0,0.49033753]
[1750708126777,0.42460203,103020.0,103010.0,0.4806304]
[1750708126980,0.42460203,103020.0,103010.0,0.5098134]
[1750708127195,0.42460203,103020.0,103010.0,0.49033772]
[1750708127405,0.42460203,103020.0,103010.0,0.50975207]
[1750708129278,0.42460203,103020.0,103010.0,0.50004494]
[1750708129698,0.42490203,103020.0,103010.0,0.50975207]
[1750708130536,0.42460203,103020.0,103010.0,0.50975207]
[1750708130727,0.42460203,103020.0,103010.0,0.53893507]
[1750708131074,0.0044,103030.0,103020.0,0.21355028]
[1750708131464,0.42900203,103030.0,103020.0,0.21355038]
[1750708131959,0.42900203,103030.0,103020.0,0.22325676]
[1750708132165,0.42900203,103030.0,103020.0,0.23296304]
[1750708132368,0.43000203,103030.0,103020.0,0.22325676]
[1750708133237,0.43000203,103030.0,103020.0,0.22325685]
[1750708133491,0.43000203,103030.0,103020.0,0.20384381]
[1750708133681,0.34,103020.0,103010.0,0.50981265]
[1750708133921,0.76460203,103020.0,103010.0,0.50981265]
[1750708134378,0.76460203,103020.0,103010.0,0.48063021]
[1750708134726,0.76460203,103020.0,103010.0,0.50004456]
[1750708136072,0.0044,103030.0,103020.0,0.20384381]
[1750708136280,0.42930203,103030.0,103020.0,0.20384381]
[1750708137678,0.43030203,103030.0,103020.0,0.20384381]
[1750708137847,0.34,103020.0,103010.0,0.49033668]
[1750708138031,0.42460203,103020.0,103010.0,0.49033668]
[1750708138449,0.42460203,103020.0,103010.0,0.51673668]
[1750708139356,0.42460203,103020.0,103010.0,0.49033668]
[1750708140335,0.0047,103030.0,103020.0,0.20384381]
[1750708140573,0.76870203,103030.0,103020.0,0.22325704]
[1750708141063,0.76870203,103030.0,103020.0,0.20384381]
[1750708141295,0.76900203,103030.0,103010.0,0.48062946]
[1750708141524,0.84920406,103020.0,103010.0,0.50692983]
[1750708141739,0.42460203,103020.0,103010.0,0.50692983]
[1750708142168,0.42460203,103020.0,103010.0,0.48062983]
[1750708142810,0.42460203,103020.0,103010.0,0.50981283]
[1750708143023,0.42460203,103020.0,103010.0,0.53541283]
[1750708143497,0.42460203,103020.0,103010.0,0.48062983]
[1750708143741,0.42460203,103020.0,103010.0,0.53361283]
[1750708144445,0.42460203,103020.0,103010.0,0.50442983]
[1750708144647,0.42460203,103020.0,103010.0,0.56001183]
[1750708145718,0.42460203,103020.0,103010.0,0.53082983]
[1750708145939,0.42460203,103020.0,103010.0,0.56001283]
[1750708146174,0.41942537,103020.0,103010.0,0.56001283]
[1750708146417,0.8440274,103020.0,103010.0,0.30416299]
[1750708146665,0.8440274,103020.0,103010.0,0.48997753]
[1750708146905,0.3447,103030.0,103020.0,0.21355048]
[1750708147148,0.76900203,103030.0,103010.0,0.54097753]
[1750708147386,0.3447,103030.0,103020.0,0.20384391]
[1750708147621,0.3444,103030.0,103020.0,0.21355066]
[1750708147858,0.3444,103030.0,103020.0,0.19413706]
[1750708148075,0.3444,103030.0,103020.0,0.00970685]
[1750708148302,0.3454,103030.0,103020.0,0.21355066]
[1750708148815,0.77000203,103030.0,103020.0,0.21355066]
[1750708149252,0.76970203,103030.0,103020.0,0.21355066]
[1750708149460,0.76970203,103030.0,103020.0,0.22325732]
[1750708149671,0.76970203,103030.0,103020.0,0.21355066]
[1750708149902,0.76970203,103030.0,103020.0,0.22325732]
[1750708150131,0.76970203,103030.0,103020.0,0.23296389]
[1750708150549,0.76970203,103030.0,103020.0,0.22325732]
[1750708150991,0.76970203,103030.0,103020.0,0.2574637]
[1750708151210,0.0051,103030.0,103020.0,0.39146928]
[1750708151863,0.42970203,103030.0,103020.0,0.39146928]
[1750708152291,0.0051,103030.0,103020.0,0.39146928]
[1750708152984,0.0051,103030.0,103020.0,0.42064828]
[1750708153219,0.0051,103030.0,103020.0,0.46640828]
[1750708153718,0.42970203,103030.0,103020.0,0.46640828]
[1750708153928,0.42970203,103030.0,103020.0,0.42064837]
[1750708154144,0.42970203,103030.0,103020.0,0.55778937]
[1750708155043,0.42970203,103030.0,103020.0,0.54808318]
[1750708155256,0.42970203,103030.0,103020.0,0.55778937]
[1750708155688,0.42970203,103030.0,103020.0,0.58697037]
[1750708156363,0.42970203,103030.0,103020.0,0.55778937]
[1750708158176,0.0051,103030.0,103020.0,0.55778937]
[1750708158400,0.42970203,103030.0,103020.0,0.55778937]
[1750708161074,0.0051,103030.0,103020.0,0.55778937]
[1750708161579,0.76970203,103030.0,103020.0,0.10029939]
[1750708161779,1.19660406,103030.0,103010.0,0.5775435]
[1750708161988,0.3474,103030.0,103020.0,0.16624]
[1750708162580,0.3464,103030.0,103020.0,0.16624]
[1750708162793,0.3494,103030.0,103020.0,0.16624]
[1750708163376,0.77400203,103030.0,103020.0,0.16624]
[1750708163582,0.77700203,103030.0,103020.0,0.16624]
[1750708164077,0.77470203,103030.0,103020.0,0.36037706]
[1750708164306,0.77470203,103030.0,103020.0,0.42008381]
[1750708164494,0.77470203,103030.0,103020.0,0.21624]
[1750708164687,0.77470203,103030.0,103020.0,0.16624]
[1750708165248,0.77470203,103030.0,103020.0,0.37008391]
[1750708165465,0.77470203,103030.0,103020.0,0.16624]
[1750708168537,0.77470203,103030.0,103020.0,0.17594685]
[1750708168948,0.77470203,103030.0,103020.0,0.40659057]
[1750708169180,0.77470203,103030.0,103020.0,0.44309713]
[1750708169392,0.77226203,103030.0,103020.0,0.55310271]
[1750708169619,0.00766,103030.0,103020.0,0.55310271]
[1750708171950,0.43226203,103030.0,103020.0,0.84930271]
[1750708173299,0.43226203,103030.0,103020.0,0.67335652]
[1750708173538,0.43226203,103030.0,103020.0,0.83947652]
[1750708173969,0.43226203,103030.0,103020.0,0.8491828]
[1750708174142,0.43226203,103030.0,103020.0,0.85888899]
[1750708174557,0.43226203,103030.0,103020.0,0.83947652]
[1750708174762,0.43226203,103030.0,103020.0,0.85888918]
[1750708175390,0.43226203,103030.0,103020.0,0.8491829]
[1750708175613,0.43226203,103030.0,103020.0,0.85888918]
[1750708175805,0.43226203,103030.0,103020.0,0.84918233]
[1750708176039,0.43226203,103030.0,103020.0,0.82976977]
[1750708176283,0.43226203,103030.0,103020.0,0.8200632]
[1750708176523,0.43226203,103030.0,103020.0,0.67335633]
[1750708176729,0.43226203,103030.0,103020.0,0.83947643]
[1750708176955,0.43226203,103030.0,103020.0,0.82972986]
[1750708177168,0.43226203,103030.0,103020.0,0.83943643]
[1750708177821,0.43226203,103030.0,103020.0,0.5238232]
[1750708178025,0.43226203,103030.0,103020.0,0.3577432]
[1750708178242,0.43226203,103030.0,103020.0,0.4702233]
[1750708178466,0.43226203,103030.0,103010.0,0.26597082]
[1750708178679,0.00766,103030.0,103020.0,0.16608]
[1750708178892,0.43226203,103030.0,103020.0,0.36021706]
[1750708179133,0.43226203,103030.0,103020.0,0.22778685]
[1750708179339,0.43226203,103030.0,103020.0,0.2374936]
[1750708179561,0.42926203,103030.0,103020.0,0.43163066]
[1750708179774,0.43126203,103030.0,103020.0,0.45104389]
[1750708180409,0.42826203,103030.0,103020.0,0.45104389]
[1750708180607,0.43126203,103030.0,103020.0,0.45104389]
[1750708180823,0.42826203,103030.0,103020.0,0.45104389]
[1750708181034,0.42826203,103030.0,103020.0,0.55134328]
[1750708181234,0.42926203,103030.0,103020.0,0.56104909]
[1750708181449,0.43126203,103030.0,103020.0,0.56104909]
[1750708182934,0.43126203,103030.0,103020.0,0.56104918]
[1750708183131,0.43126203,103030.0,103020.0,0.56104862]
[1750708183360,0.43126203,103030.0,103020.0,0.55134243]
[1750708183773,0.43126203,103030.0,103020.0,0.55134253]
[1750708183988,0.43126203,103030.0,103020.0,0.31837939]
[1750708184198,0.43126203,103030.0,103020.0,0.32808624]
[1750708184440,0.43126203,103030.0,103020.0,0.53193005]
[1750708185080,0.34,103020.0,103010.0,0.26397073]
[1750708185296,1.18920406,103020.0,103010.0,0.57587059]
[1750708185533,0.76460203,103020.0,103010.0,0.58557791]
[1750708185948,0.76460203,103020.0,103010.0,0.59528513]
[1750708186152,0.76460203,103020.0,103010.0,0.59528504]
[1750708186357,0.76560203,103020.0,103010.0,0.59528504]
[1750708186806,0.76660203,103020.0,103010.0,0.59528504]
[1750708189372,0.002,103020.0,103010.0,0.59528504]
[1750708189616,0.42660203,103020.0,103010.0,0.59528504]
[1750708192610,0.42660203,103020.0,103010.0,0.54960504]
[1750708193242,0.42660203,103020.0,103010.0,0.38368504]
[1750708193657,0.42660203,103020.0,103010.0,0.54960504]
[1750708195306,0.76660203,103020.0,103010.0,0.53989819]
[1750708195517,0.76660203,103020.0,103010.0,0.54960551]
[1750708196172,0.76660203,103020.0,103010.0,0.55931273]
[1750708196322,0.76660203,103020.0,103010.0,0.55931207]
[1750708196534,0.76660203,103020.0,103010.0,0.5301504]
[1750708196734,0.76660203,103020.0,103010.0,0.54956494]
[1750708196954,0.76660203,103020.0,103010.0,0.53985782]
[1750708197245,0.76660203,103020.0,103010.0,0.54956504]
[1750708197457,0.76660203,103020.0,103010.0,0.53985782]
[1750708197691,0.76660203,103020.0,103010.0,0.54956504]
[1750708198796,0.76660203,103020.0,103010.0,0.0504]
[1750708198797,1.19120406,103020.0,103010.0,0.0504]
[1750708199017,0.34,103010.0,102990.0,0.052]
[1750708199278,0.76460203,103000.0,102990.0,0.25590329]
[1750708199492,0.76460203,103000.0,102990.0,0.44162268]
[1750708199903,0.76460203,103000.0,102990.0,0.45133179]
[1750708200118,0.76460203,103000.0,102990.0,0.56134038]
[1750708200348,0.003,103010.0,103000.0,0.27549982]
[1750708200564,0.001,103020.0,103010.0,0.26577101]
[1750708200780,0.341,103020.0,103010.0,0.3630704]
[1750708200996,0.76560203,103020.0,103010.0,0.41821753]
[1750708201204,0.76460203,103020.0,103010.0,0.41821753]
[1750708201410,0.34,103020.0,103010.0,0.36607012]
[1750708201624,0.344,103020.0,103010.0,0.58705753]
[1750708201833,0.004,103020.0,103010.0,0.58705753]
[1750708202047,0.00166,103030.0,103020.0,0.21355029]
[1750708202258,0.42626203,103030.0,103020.0,0.3513432]
[1750708202470,0.42626203,103030.0,103020.0,0.36104967]
[1750708202683,0.42626203,103030.0,103020.0,0.15049939]
[1750708202895,0.85086406,103030.0,103020.0,0.16584]
[1750708203106,0.42626203,103030.0,103020.0,0.16584]
[1750708203544,0.42826203,103030.0,103020.0,0.16584]
[1750708203966,0.85286406,103030.0,103020.0,0.16584]
[1750708204173,0.34,103020.0,103010.0,0.0253]
[1750708204409,1.18920406,103020.0,103010.0,0.0253]
[1750708204678,1.18920406,103020.0,103000.0,0.0253]
[1750708204894,1.18920406,103020.0,103000.0,0.1658]
[1750708204895,0.42460203,103010.0,103000.0,0.1658]
[1750708205365,0.76460203,103010.0,103000.0,0.1658]
[1750708206649,0.76460203,103010.0,103000.0,0.1678]
[1750708207059,0.76460203,103010.0,103000.0,0.1941]
[1750708207262,0.76460203,103010.0,103000.0,0.1678]
[1750708207485,0.76460203,103010.0,103000.0,0.1658]
[1750708207897,0.76660203,103010.0,103000.0,0.1658]
[1750708209758,0.76660203,103010.0,103000.0,0.1916]
[1750708210192,0.76660203,103010.0,103000.0,0.2181]
[1750708210406,0.76660203,103010.0,103000.0,0.41227475]
[1750708210618,0.76660203,103010.0,103000.0,0.54169921]
[1750708210828,0.002,103010.0,103000.0,0.54169921]
[1750708211672,0.42660203,103010.0,103000.0,0.54169921]
[1750708212336,0.42460203,103010.0,103000.0,0.54169921]
[1750708212766,0.42660203,103010.0,103000.0,0.54169921]
[1750708213257,0.76660203,103010.0,103000.0,0.54169921]
[1750708214089,0.76660203,103010.0,103000.0,0.57739123]
[1750708214294,0.76660203,103010.0,103000.0,0.58709949]
[1750708214513,0.76660203,103010.0,103000.0,0.59680756]
[1750708214924,0.76660203,103010.0,103000.0,0.58709949]
[1750708215135,0.76660203,103010.0,103000.0,0.59680766]
[1750708215343,0.76660203,103010.0,103000.0,0.59680776]
[1750708215769,0.76660203,103010.0,103000.0,0.34677414]
[1750708215981,0.76660203,103010.0,103000.0,0.52224278]
[1750708216317,0.76660203,103010.0,103000.0,0.54165968]
[1750708216746,0.76660203,103010.0,103000.0,0.53195132]
[1750708217185,0.76660203,103010.0,103000.0,0.52224287]
[1750708217386,0.76660203,103010.0,103000.0,0.54165986]
[1750708217823,0.76660203,103010.0,103000.0,0.56107648]
[1750708218037,0.76660203,103010.0,103000.0,0.56107582]
[1750708218246,0.76660203,103010.0,103000.0,0.55136775]
[1750708218913,0.76660203,103010.0,103000.0,0.56107592]
[1750708219121,0.76660203,103010.0,103000.0,0.55136775]
[1750708219539,0.76660203,103010.0,103000.0,0.53195113]
[1750708219780,0.76660203,103010.0,103000.0,0.54165949]
[1750708220295,0.342,103010.0,103000.0,0.55136766]
[1750708220537,0.76660203,103010.0,103000.0,0.55136766]
[1750708220777,0.76660203,103010.0,103000.0,0.56107573]
[1750708221002,0.76660203,103010.0,103000.0,0.55136766]
[1750708221233,0.342,103010.0,103000.0,0.56107573]
[1750708221556,0.002,103010.0,103000.0,1.06326857]
[1750708221804,0.002,103010.0,103000.0,1.07780942]
[1750708222299,0.002,103010.0,103000.0,1.10698642]
[1750708222508,0.002,103010.0,103000.0,1.10898642]
[1750708222925,0.34166,103030.0,103020.0,0.27335647]